bitfinex-derivatives/quotes_BNBF0:USTF0_20251010
["timestamp","ask_amount","ask_price","bid_price","bid_amount"]
[1760109083984,0.18976249,1237.7,1237.2,0.19453988]
[1760109084185,0.18976249,1237.7,1237.5,0.19453988]
[1760109084591,0.18976249,1237.8,1237.5,0.19453988]
[1760109084885,0.18976249,1237.9,1237.6,0.19453988]
[1760109085388,0.18976249,1237.9,1237.7,0.19453988]
[1760109086989,0.18976249,1237.9,1237.6,0.19453988]
[1760109087284,0.18976249,1237.9,1236.4,1.19869]
[1760109087285,0.18976249,1237.9,1237.4,0.19453988]
[1760109087485,0.18976249,1237.5,1237.3,0.19453988]
[1760109088085,0.18976249,1237.5,1237.2,0.19453988]
[1760109088489,0.18976249,1237.3,1237.1,0.19453988]
[1760109089190,0.18976249,1237.3,1236.9,0.19453988]
[1760109089389,0.18976249,1237.1,1236.9,0.19453988]
[1760109089585,0.18976249,1237.2,1236.9,0.19453988]
[1760109089789,0.18976249,1237.3,1236.9,0.19453988]
[1760109090090,0.18976249,1237.3,1237.1,0.19453988]
[1760109090291,0.18976249,1237.5,1237.1,0.19453988]
[1760109090689,0.18976249,1237.4,1237.1,0.19453988]
[1760109091889,0.14056432,1238.2,1237.1,0.19453988]
[1760109091890,0.18976249,1237.7,1237.1,0.19453988]
[1760109092089,0.18976249,1237.7,1237.4,0.19453988]
[1760109092485,0.18976249,1237.6,1237.4,0.19453988]
[1760109093491,0.18976249,1237.5,1237.3,0.19453988]
[1760109093991,0.18976249,1237.5,1237.1,0.19453988]
[1760109094189,0.18976249,1237.3,1237.1,0.19453988]
[1760109094589,0.18976249,1237.3,1236.9,0.19453988]
[1760109094790,0.18976249,1237.1,1236.9,0.19453988]
[1760109094990,0.18976249,1237.1,1236.6,0.19453988]
[1760109095490,0.18976249,1236.9,1236.6,0.19453988]
[1760109096490,0.18976249,1236.9,1236.7,0.19453988]
[1760109096690,0.14056432,1238.2,1236.7,0.19453988]
[1760109096691,0.18976249,1237.1,1236.7,0.19453988]
[1760109097089,0.18976249,1237.1,1236.9,0.19453988]
[1760109097889,0.18976249,1237.2,1236.9,0.19453988]
[1760109098489,0.18976249,1237.1,1236.9,0.19453988]
[1760109098897,0.18976249,1237.1,1236.8,0.19453988]
[1760109099097,0.18976249,1237.0,1236.8,0.19453988]
[1760109100194,0.18976249,1237.0,1236.7,0.19453988]
[1760109100894,0.18976249,1237.0,1236.8,0.19453988]
[1760109101495,0.18976249,1237.1,1236.8,0.19453988]
[1760109101698,0.18976249,1237.2,1236.8,0.19453988]
[1760109102097,0.18976249,1237.2,1237.0,0.19453988]
[1760109102796,0.18976249,1237.4,1237.0,0.19453988]
[1760109103097,0.18976249,1237.4,1237.2,0.19453988]
[1760109104096,0.18976249,1237.4,1237.1,0.19453988]
[1760109104697,0.18976249,1237.4,1237.2,0.19453988]
[1760109104899,0.18976249,1237.4,1237.0,0.19453988]
[1760109105095,0.18976249,1237.2,1236.9,0.19453988]
[1760109108001,0.18976249,1236.9,1236.6,0.19453988]
[1760109108197,0.18976249,1236.9,1236.7,0.19453988]
[1760109108402,0.18976249,1237.0,1236.7,0.19453988]
[1760109108598,0.18976249,1237.2,1236.6,0.59881884]
[1760109108798,0.18976249,1237.4,1236.9,0.59881884]
[1760109109000,0.18976249,1237.4,1237.2,0.19980219]
[1760109110403,0.18976249,1237.5,1237.2,0.19980219]
[1760109111802,0.18976249,1237.5,1237.3,0.19980219]
[1760109112300,0.18976249,1237.8,1237.2,0.59881884]
[1760109112503,0.18976249,1237.9,1237.6,0.20001965]
[1760109113200,0.18976249,1238.0,1237.6,0.79883849]
[1760109113403,0.18976249,1238.0,1237.8,0.20001965]
[1760109113601,0.18976249,1238.1,1237.8,0.20001965]
[1760109114004,0.18976249,1238.1,1237.9,0.20001965]
[1760109114404,0.18976249,1238.1,1237.8,0.20001965]
[1760109114605,0.18976249,1238.0,1237.8,0.20001965]
[1760109115105,0.18976249,1237.9,1237.8,0.20001965]
[1760109115405,0.18976249,1237.9,1237.6,0.20001965]
[1760109115602,0.18976249,1237.8,1237.6,0.20001965]
[1760109115999,0.18976249,1237.8,1237.4,0.20001965]
[1760109116204,0.18976249,1237.7,1237.4,0.20001965]
[1760109116402,0.18976249,1237.7,1237.5,0.20001965]
[1760109117204,0.18976249,1237.6,1237.4,0.20001965]
[1760109117600,0.18976249,1237.6,1237.2,0.20001965]
[1760109117802,0.18976249,1237.5,1237.2,0.20001965]
[1760109118202,0.18976249,1237.5,1237.1,0.20001965]
[1760109118404,0.18976249,1237.3,1236.9,0.20001965]
[1760109118604,0.18976249,1237.3,1236.4,0.20001965]
[1760109118806,0.18976249,1236.6,1236.4,0.20001965]
[1760109120004,0.18976249,1236.7,1236.5,0.20001965]
[1760109120205,0.18976249,1236.8,1236.5,0.20001965]
[1760109120404,0.18976249,1236.9,1236.5,0.79883849]
[1760109120606,0.18976249,1236.9,1236.7,0.20001965]
[1760109121605,0.18976249,1236.9,1236.6,0.20001965]
[1760109122209,0.18976249,1236.8,1236.6,0.20001965]
[1760109122407,0.18976249,1236.8,1236.5,0.20001965]
[1760109122614,0.18976249,1236.8,1236.4,0.20001965]
[1760109122908,0.19544344,1236.5,1235.9,0.20001965]
[1760109123311,0.14054048,1238.4,1235.9,0.20001965]
[1760109123312,0.19544344,1236.2,1235.9,0.20001965]
[1760109124811,0.19544344,1236.0,1235.8,0.20001965]
[1760109125111,0.19544344,1236.0,1235.5,0.59881884]
[1760109125112,0.19544344,1236.0,1235.7,0.20001965]
[1760109125414,0.19544344,1235.8,1235.6,0.20001965]
[1760109125907,0.19544344,1235.9,1235.6,0.20001965]
[1760109126511,0.19544344,1236.0,1235.7,0.20001965]
[1760109127010,0.7832541,1238.2,1235.7,0.20001965]
[1760109127011,0.19544344,1235.9,1235.7,0.20001965]
[1760109127411,0.19544344,1235.9,1235.6,0.20001965]
[1760109128612,0.19544344,1235.8,1235.6,0.20001965]
[1760109130514,0.19544344,1236.0,1235.6,0.20001965]
[1760109130914,0.19544344,1236.0,1235.7,0.20001965]
[1760109131114,0.19544344,1235.9,1235.7,0.20001965]
[1760109132716,0.19544344,1235.9,1235.5,0.20001965]
[1760109132910,0.14054048,1238.4,1235.5,0.20001965]
[1760109132911,0.19544344,1235.7,1235.5,0.20001965]
[1760109134616,0.14054048,1238.4,1234.4,0.79912672]
[1760109134617,0.19544344,1235.6,1235.2,0.20001965]
[1760109135011,0.19544344,1235.3,1235.1,0.20001965]
[1760109137417,0.19544344,1235.2,1235.0,0.20001965]
[1760109137615,0.19544344,1235.2,1234.9,0.20001965]
[1760109138317,0.19544344,1235.2,1235.0,0.20001965]
[1760109138821,0.19544344,1235.2,1234.9,0.20001965]
[1760109139320,0.19544344,1235.2,1235.0,0.20001965]
[1760109139520,0.19544344,1235.2,1234.9,0.20001965]
[1760109140618,0.19544344,1235.1,1234.7,0.20001965]
[1760109141121,0.19544344,1235.1,1233.7,0.59758481]
[1760109141122,0.19544344,1234.8,1234.6,0.20001965]
[1760109141318,0.19544344,1234.9,1234.6,0.20001965]
[1760109142316,0.19544344,1235.2,1234.6,0.20001965]
[1760109142618,0.19544344,1235.2,1234.9,0.20001965]
[1760109143220,0.19544344,1235.2,1233.9,0.59758481]
[1760109143221,0.19544344,1235.3,1235.1,0.20001965]
[1760109143421,0.19544344,1235.5,1235.1,0.20001965]
[1760109143722,0.19544344,1235.7,1234.5,0.59758481]
[1760109143924,0.19544344,1235.8,1235.5,0.19770121]
[1760109144126,0.19544344,1236.0,1235.5,0.19770121]
[1760109144327,0.19544344,1236.0,1235.8,0.19770121]
[1760109145323,0.19544344,1236.0,1235.7,0.19770121]
[1760109145524,0.19544344,1236.0,1235.6,0.19770121]
[1760109145721,0.19544344,1235.9,1235.6,0.19770121]
[1760109147421,0.19544344,1235.8,1235.6,0.19770121]
[1760109149729,0.19544344,1235.7,1235.5,0.19770121]
[1760109149925,0.19544344,1235.7,1235.3,0.19770121]
[1760109150126,0.19544344,1235.5,1235.3,0.19770121]
[1760109150329,0.19544344,1235.5,1235.1,0.19770121]
[1760109150725,0.19544344,1235.3,1235.1,0.19770121]
[1760109152626,0.19544344,1235.4,1235.1,0.19770121]
[1760109152829,0.19544344,1235.4,1231.8,1.9784871]
[1760109152830,0.19544344,1235.6,1235.3,0.19770121]
[1760109153027,0.19544344,1235.7,1235.3,0.19770121]
[1760109153231,0.19544344,1235.7,1235.5,0.19770121]
[1760109154842,0.19544344,1235.7,1235.4,0.19770121]
[1760109155236,0.19544344,1235.7,1235.5,0.19770121]
[1760109155631,0.19544344,1235.9,1235.5,0.19770121]
[1760109155932,0.19544344,1236.1,1235.8,0.19770121]
[1760109156438,0.92379458,1238.4,1235.5,0.19770121]
[1760109156733,0.19291934,1235.8,1235.5,0.19770121]
[1760109156934,0.19291934,1235.9,1235.6,0.19770121]
[1760109157339,0.19291934,1236.0,1235.6,0.19770121]
[1760109157636,0.19291934,1236.0,1235.7,0.19770121]
[1760109159033,0.19291934,1236.0,1235.8,0.19770121]
[1760109159441,0.19291934,1236.0,1235.7,0.19770121]
[1760109160135,0.19291934,1235.9,1235.7,0.19770121]
[1760109160636,0.19291934,1236.0,1235.7,0.19770121]
[1760109161440,0.19291934,1236.0,1233.1,1.9784871]
[1760109161441,0.19291934,1236.0,1235.6,0.19770121]
[1760109161639,0.92379458,1238.4,1235.4,0.19770121]
[1760109161640,0.19291934,1235.8,1235.4,0.19770121]
[1760109162042,0.19291934,1235.6,1235.4,0.19770121]
[1760109163742,0.19291934,1235.6,1235.3,0.19770121]
[1760109164144,0.19291934,1235.5,1235.3,0.19770121]
[1760109165544,0.19291934,1235.5,1235.1,0.19770121]
[1760109165943,0.19291934,1235.4,1235.1,0.19770121]
[1760109166842,0.19291934,1235.3,1235.1,0.19770121]
[1760109168444,0.19291934,1235.3,1235.0,0.19770121]
[1760109168848,0.19291934,1235.3,1234.9,0.19770121]
[1760109169145,0.19291934,1235.2,1234.9,0.19770121]
[1760109171954,1.1748811,1238.1,1235.0,0.19770121]
[1760109171955,0.19291934,1235.3,1235.0,0.19770121]
[1760109172151,0.19291934,1235.4,1235.0,0.19770121]
[1760109172351,0.19291934,1235.4,1235.2,0.19770121]
[1760109172753,0.19291934,1235.5,1235.2,0.19770121]
[1760109172956,0.19291934,1235.5,1234.4,0.59422477]
[1760109172957,0.19291934,1235.5,1235.3,0.19770121]
[1760109173949,0.19291934,1235.7,1235.4,0.19770121]
[1760109174553,0.19291934,1235.6,1235.4,0.19770121]
[1760109178354,0.19291934,1235.7,1235.4,0.19770121]
[1760109178855,0.19291934,1235.8,1235.5,0.19770121]
[1760109179861,0.19291934,1235.8,1235.6,0.19770121]
[1760109180357,0.19291934,1235.8,1235.4,0.19770121]
[1760109180561,0.19291934,1235.8,1235.3,0.19770121]
[1760109180761,0.19291934,1235.5,1235.3,0.19770121]
[1760109181061,0.19291934,1235.5,1235.1,0.19770121]
[1760109181257,0.19291934,1235.3,1235.1,0.19770121]
[1760109181459,0.19291934,1235.3,1235.0,0.19770121]
[1760109181856,0.19291934,1235.2,1235.0,0.19770121]
[1760109184962,0.19291934,1235.3,1235.0,0.19770121]
[1760109185166,0.19291934,1235.3,1235.1,0.19770121]
[1760109185667,0.7832541,1237.3,1235.1,0.19770121]
[1760109185668,0.19291934,1235.4,1235.1,0.19770121]
[1760109185964,0.19291934,1235.6,1235.3,0.6023643]
[1760109186167,0.19291934,1235.8,1235.5,0.6023643]
[1760109186362,0.19291934,1235.8,1235.5,0.2007755]
[1760109186766,0.19291934,1235.6,1235.3,0.8031398]
[1760109186966,0.19291934,1235.6,1235.2,0.2007755]
[1760109187367,0.19291934,1235.4,1235.2,0.2007755]
[1760109188965,0.19291934,1235.6,1235.2,0.8031398]
[1760109189267,0.19291934,1235.8,1235.4,0.6023643]
[1760109189469,0.19291934,1235.8,1235.5,0.2007755]
[1760109190266,0.19291934,1235.8,1235.4,0.6023643]
[1760109190267,0.19291934,1235.8,1235.4,0.2007755]
[1760109190469,0.19291934,1235.6,1235.4,0.2007755]
[1760109191366,0.19291934,1235.6,1235.3,0.2007755]
[1760109191771,0.19291934,1235.4,1235.1,0.2007755]
[1760109192085,0.19291934,1235.4,1235.0,0.2007755]
[1760109192268,0.19291934,1235.2,1235.0,0.2007755]
[1760109192469,0.19291934,1235.2,1234.9,0.2007755]
[1760109193372,0.19291934,1235.2,1235.0,0.2007755]
[1760109194270,0.19291934,1235.3,1235.0,0.2007755]
[1760109194471,0.19291934,1235.4,1235.1,0.2007755]
[1760109194671,0.19291934,1235.4,1235.1,0.8031398]
[1760109194872,0.19291934,1235.7,1235.3,0.60252371]
[1760109195168,0.19291934,1235.7,1235.5,0.2007755]
[1760109195371,0.19291934,1235.7,1235.4,0.2007755]
[1760109196366,0.19291934,1235.6,1235.3,0.2007755]
[1760109196571,0.19291934,1235.6,1235.1,0.2007755]
[1760109196771,0.19291934,1235.3,1235.0,0.2007755]
[1760109196969,0.19291934,1235.3,1234.9,0.80329921]
[1760109197370,0.19291934,1235.2,1234.9,0.80329921]
[1760109197869,0.19291934,1235.2,1234.9,0.2007755]
[1760109198371,0.19291934,1235.2,1234.8,0.2007755]
[1760109198573,0.19291934,1235.2,1234.7,0.2007755]
[1760109198873,0.19291934,1235.0,1234.7,0.80329921]
[1760109199074,0.19291934,1235.1,1234.9,0.2007755]
[1760109199777,0.19291934,1235.6,1235.0,0.79912672]
[1760109199969,0.19291934,1235.6,1235.2,0.60255081]
[1760109200181,0.19291934,1235.7,1235.4,0.2007755]
[1760109200874,0.19291934,1235.7,1235.4,0.80332631]
[1760109201069,0.19291934,1235.8,1235.6,0.2007755]
[1760109201469,0.19291934,1236.0,1235.7,0.60255081]
[1760109201670,0.19291934,1236.0,1235.8,0.2007755]
[1760109201874,0.19291934,1236.0,1235.7,0.2007755]
[1760109202571,0.19291934,1236.1,1235.9,0.2007755]
[1760109203479,0.19291934,1236.3,1236.0,0.60255081]
[1760109203674,0.19291934,1236.4,1236.2,0.2007755]
[1760109204378,0.19291934,1236.4,1236.1,0.2007755]
[1760109204773,0.19291934,1236.3,1236.0,0.2007755]
[1760109205278,0.19291934,1236.1,1235.9,0.2007755]
[1760109205572,0.19291934,1236.1,1235.8,0.80332631]
[1760109206282,0.19291934,1236.1,1235.8,0.2007755]
[1760109206475,0.19291934,1236.1,1235.9,0.2007755]
[1760109207878,0.19291934,1236.1,1235.6,0.60255081]
[1760109207879,0.19291934,1236.0,1235.8,0.2007755]
[1760109208079,0.19291934,1236.0,1235.5,0.2007755]
[1760109208278,0.19291934,1235.6,1235.4,0.2007755]
[1760109208478,0.19291934,1235.6,1235.3,0.2007755]
[1760109209079,0.19291934,1235.5,1235.3,0.2007755]
[1760109210382,0.7832541,1237.1,1235.1,0.2007755]
[1760109210584,0.19580935,1235.3,1235.0,0.2007755]
[1760109211483,0.19580935,1235.1,1234.8,0.2007755]
[1760109211881,0.19580935,1235.0,1234.8,0.2007755]
[1760109212077,0.7832541,1237.1,1234.8,0.2007755]
[1760109212078,0.19580935,1235.3,1234.8,0.2007755]
[1760109212479,0.19580935,1235.3,1235.0,0.2007755]
[1760109212983,0.19580935,1235.3,1235.1,0.2007755]
[1760109213679,0.19580935,1235.3,1235.0,0.2007755]
[1760109214681,0.19580935,1235.1,1234.9,0.2007755]
[1760109215285,0.19580935,1235.2,1234.9,0.2007755]
[1760109215594,0.19580935,1235.2,1235.0,0.2007755]
[1760109216382,0.19580935,1235.3,1235.0,0.2007755]
[1760109216788,0.19580935,1235.4,1235.1,0.2007755]
[1760109217286,0.19580935,1235.5,1235.3,0.2007755]
[1760109217684,0.19580935,1235.6,1235.3,0.2007755]
[1760109217884,0.19580935,1235.7,1235.4,0.2007755]
[1760109219185,0.19580935,1235.5,1235.3,0.2007755]
[1760109219383,0.19580935,1235.6,1235.3,0.2007755]
[1760109219588,0.19580935,1235.6,1235.4,0.2007755]
[1760109220589,0.19580935,1235.7,1235.5,0.2007755]
[1760109221989,0.19580935,1235.9,1235.6,0.60255081]
[1760109222295,0.19580935,1236.1,1235.7,0.60255081]
[1760109222502,0.19580935,1236.1,1235.9,0.2007755]
[1760109223093,0.19580935,1236.3,1235.9,0.60255081]
[1760109223286,0.19580935,1236.3,1236.1,0.2007069]
[1760109224187,0.19580935,1236.4,1236.1,0.2007069]
[1760109224492,0.19580935,1236.6,1236.2,0.80325771]
[1760109224887,0.19580935,1236.6,1236.4,0.2007069]
[1760109225092,0.19580935,1236.7,1236.4,0.2007069]
[1760109225290,0.19580935,1236.7,1236.5,0.2007069]
[1760109229195,0.19580935,1237.0,1236.5,0.2007069]
[1760109229400,0.19580935,1237.0,1236.8,0.2007069]
[1760109229597,0.19580935,1237.0,1236.7,0.2007069]
[1760109232103,0.14054048,1238.4,1236.7,0.2007069]
[1760109232104,0.19580935,1236.9,1236.7,0.2007069]
[1760109232311,0.19580935,1237.0,1236.7,0.2007069]
[1760109232500,0.19580935,1237.0,1236.6,0.2007069]
[1760109232705,0.19580935,1236.7,1236.5,0.2007069]
[1760109233104,0.19580935,1236.7,1236.4,0.2007069]
[1760109233604,0.19580935,1236.7,1236.3,0.2007069]
[1760109233800,0.19580935,1236.5,1236.3,0.2007069]
[1760109234005,0.19580935,1236.6,1236.3,0.2007069]
[1760109234304,0.14054048,1238.4,1236.3,0.2007069]
[1760109234305,0.19580935,1236.7,1236.3,0.2007069]
[1760109234505,0.19580935,1236.7,1236.5,0.2007069]
[1760109234899,0.19580935,1236.8,1236.6,0.2007069]
[1760109235102,0.19580935,1237.0,1236.6,0.2007069]
[1760109235500,0.19580935,1237.0,1236.7,0.2007069]
[1760109235707,0.19580935,1236.9,1236.7,0.2007069]
[1760109238305,0.19580935,1236.8,1236.6,0.2007069]
[1760109238506,0.19580935,1236.8,1236.3,0.2007069]
[1760109238912,0.19580935,1236.5,1236.3,0.2007069]
[1760109239414,0.19580935,1236.5,1236.0,0.2007069]
[1760109240011,0.19580935,1236.2,1236.0,0.2007069]
[1760109240419,0.19580935,1236.2,1235.9,0.2007069]
[1760109240911,0.19580935,1236.2,1236.0,0.2007069]
[1760109241117,0.19580935,1236.2,1235.9,0.2007069]
[1760109241716,0.19580935,1236.2,1236.0,0.2007069]
[1760109243915,0.19580935,1236.4,1236.0,0.2007069]
[1760109244116,0.19580935,1236.5,1236.0,0.2007069]
[1760109244316,0.19580935,1236.5,1236.3,0.2007069]
[1760109245017,0.19580935,1236.6,1236.3,0.2007069]
[1760109245218,0.14054048,1238.4,1236.3,0.2007069]
[1760109245219,0.19580935,1236.7,1236.3,0.2007069]
[1760109245413,0.19580935,1237.0,1236.5,0.2007069]
[1760109245917,0.19580935,1237.0,1236.8,0.2007069]
[1760109246618,0.19580935,1237.0,1236.5,0.2007069]
[1760109246813,0.19580935,1236.7,1236.5,0.2007069]
[1760109247015,0.19580935,1236.7,1236.4,0.2007069]
[1760109248020,0.19580935,1236.6,1236.4,0.2007069]
[1760109248615,0.19580935,1236.6,1236.3,0.2007069]
[1760109248829,0.19580935,1236.5,1236.3,0.2007069]
[1760109249717,0.19580935,1236.5,1236.2,0.2007069]
[1760109250430,0.19580935,1236.8,1235.8,0.6004164]
[1760109250732,0.19580935,1237.0,1236.7,0.19895023]
[1760109250921,0.19580935,1237.1,1236.7,0.19895023]
[1760109251120,0.19580935,1237.1,1236.9,0.19895023]
[1760109251430,0.19580935,1237.2,1236.8,0.19895023]
[1760109251622,0.19580935,1237.2,1236.7,0.19895023]
[1760109251822,0.19580935,1236.8,1236.5,0.19895023]
[1760109253318,0.19580935,1236.9,1236.5,0.19895023]
[1760109253518,0.19580935,1236.9,1235.9,0.6004164]
[1760109253519,0.19580935,1236.9,1236.7,0.19895023]
[1760109253729,0.19580935,1236.9,1236.5,0.19895023]
[1760109253920,0.19580935,1236.7,1236.4,0.19895023]
[1760109254418,0.14054048,1238.4,1236.4,0.19895023]
[1760109254419,0.19580935,1236.6,1236.4,0.19895023]
[1760109255620,0.19580935,1236.8,1236.4,0.19895023]
[1760109256119,0.19580935,1236.8,1236.6,0.19895023]
[1760109256526,0.19580935,1236.8,1236.5,0.19895023]
[1760109257122,0.19580935,1236.8,1236.1,0.19895023]
[1760109257333,0.19580935,1236.8,1235.8,0.19895023]
[1760109257524,0.19580935,1236.0,1235.8,0.19895023]
[1760109258322,0.19580935,1236.0,1235.7,0.19895023]
[1760109258827,0.19580935,1236.0,1235.6,0.19895023]
[1760109259122,0.19580935,1235.8,1235.6,0.19895023]
[1760109261333,0.19580935,1235.8,1235.5,0.19895023]
[1760109261727,0.19580935,1235.7,1235.5,0.19895023]
[1760109261931,0.19580935,1235.7,1235.3,0.19895023]
[1760109262132,0.19580935,1235.5,1235.3,0.19895023]
[1760109262329,0.19580935,1235.6,1235.3,0.19895023]
[1760109262546,0.7832541,1237.7,1235.3,0.19895023]
[1760109262547,0.19580935,1235.7,1235.3,0.19895023]
[1760109262735,0.19580935,1235.7,1235.4,0.19895023]
[1760109263130,0.19580935,1235.6,1235.4,0.19895023]
[1760109266130,0.19580935,1235.5,1235.3,0.19895023]
[1760109266534,0.19580935,1235.5,1235.2,0.19895023]
[1760109266731,0.19580935,1235.4,1235.2,0.19895023]
[1760109267135,0.19580935,1235.4,1235.1,0.19895023]
[1760109267336,0.19580935,1235.3,1235.1,0.19895023]
[1760109267736,0.19580935,1235.3,1234.9,0.19895023]
[1760109268235,0.19580935,1235.4,1235.1,0.19895023]
[1760109269032,0.19580935,1235.3,1235.1,0.19895023]
[1760109270432,0.19580935,1235.4,1235.1,0.19895023]
[1760109271035,0.14054048,1238.4,1235.1,0.19895023]
[1760109271036,0.19580935,1235.5,1235.1,0.19895023]
[1760109271232,0.19580935,1235.5,1235.3,0.19895023]
[1760109271437,0.19580935,1235.7,1235.3,0.19895023]
[1760109271832,0.19580935,1235.7,1235.5,0.19895023]
[1760109273334,0.19580935,1235.7,1235.3,0.19895023]
[1760109273538,0.19580935,1235.6,1235.3,0.19895023]
[1760109274338,0.19580935,1235.7,1235.3,0.19895023]
[1760109274740,0.19580935,1235.7,1235.5,0.19895023]
[1760109277534,0.19580935,1235.7,1235.4,0.19895023]
[1760109277739,0.19580935,1235.7,1234.1,0.79912672]
[1760109277740,0.19580935,1235.7,1235.3,0.19895023]
[1760109277935,0.19580935,1235.7,1234.5,0.6004164]
[1760109277936,0.19580935,1235.5,1235.2,0.19895023]
[1760109278340,0.19580935,1235.5,1235.1,0.19895023]
[1760109278536,0.19580935,1235.4,1235.1,0.19895023]
[1760109279236,0.19580935,1235.3,1235.1,0.19895023]
[1760109279435,0.19580935,1235.3,1234.4,0.6004164]
[1760109279436,0.19580935,1235.3,1234.8,0.19895023]
[1760109279639,0.19580935,1235.1,1234.8,0.19895023]
[1760109279834,0.19580935,1235.1,1234.7,0.19895023]
[1760109280137,0.19580935,1235.0,1234.7,0.19895023]
[1760109280535,0.19580935,1235.0,1234.5,0.19895023]
[1760109280735,1.9536369,1238.2,1234.5,0.19895023]
[1760109280736,0.19580935,1234.7,1234.5,0.19895023]
[1760109281339,0.7832541,1236.8,1234.3,0.19895023]
[1760109281537,0.1944803,1234.6,1234.3,0.19895023]
[1760109281736,0.1944803,1234.8,1234.3,0.19895023]
[1760109282036,0.1944803,1234.8,1234.5,0.19895023]
[1760109283238,0.1944803,1234.7,1234.5,0.19895023]
[1760109283843,0.7832541,1237.0,1234.2,0.19895023]
[1760109284043,0.19416728,1234.4,1234.0,0.19895023]
[1760109284745,0.19416728,1234.4,1234.1,0.19895023]
[1760109284939,0.19416728,1234.4,1234.0,0.19895023]
[1760109285245,0.19416728,1234.7,1234.0,0.19895023]
[1760109285442,0.19416728,1234.7,1234.5,0.19895023]
[1760109285746,0.19416728,1234.7,1234.4,0.19895023]
[1760109285946,0.7832541,1236.9,1234.2,0.19895023]
[1760109286143,0.19393885,1234.4,1234.2,0.19895023]
[1760109286445,0.19393885,1234.4,1234.1,0.19895023]
[1760109286644,0.19393885,1234.4,1233.8,0.19895023]
[1760109286845,0.19393885,1234.4,1233.6,0.19895023]
[1760109287046,0.19393885,1233.8,1233.6,0.19895023]
[1760109289645,0.19393885,1233.8,1233.4,0.19895023]
[1760109289847,0.19393885,1233.6,1233.4,0.19895023]
[1760109290649,0.19393885,1233.6,1233.2,0.19895023]
[1760109291146,0.19393885,1233.7,1233.4,0.19895023]
[1760109291750,0.19393885,1233.8,1233.4,0.19895023]
[1760109292149,0.19393885,1233.7,1233.5,0.19895023]
[1760109292451,0.19393885,1233.8,1233.5,0.19895023]
[1760109292648,0.19393885,1233.8,1232.0,0.79912672]
[1760109292649,0.19393885,1233.8,1233.6,0.19895023]
[1760109293054,0.19393885,1233.8,1233.5,0.19895023]
[1760109294051,0.19393885,1233.7,1233.5,0.19895023]
[1760109294755,0.19393885,1233.7,1233.3,0.19895023]
[1760109295356,0.19393885,1233.7,1233.4,0.19895023]
[1760109297257,0.19393885,1233.6,1233.4,0.19895023]
[1760109297454,0.19393885,1233.6,1233.3,0.19895023]
[1760109297957,0.19393885,1233.5,1233.3,0.19895023]
[1760109298353,0.19393885,1233.6,1233.3,0.19895023]
[1760109299354,0.19393885,1233.5,1233.3,0.19895023]
[1760109299655,0.19393885,1233.6,1233.3,0.19895023]
[1760109300558,0.19393885,1233.6,1233.2,0.19895023]
[1760109300857,0.19393885,1233.3,1233.1,0.19895023]
[1760109301062,0.19393885,1233.4,1233.1,0.19895023]
[1760109301357,0.19393885,1233.4,1233.2,0.19895023]
[1760109302864,0.19393885,1233.6,1233.2,0.19895023]
[1760109303162,0.19393885,1233.6,1233.4,0.19895023]
[1760109303360,0.19393885,1233.7,1233.4,0.19895023]
[1760109303561,0.19393885,1233.7,1233.5,0.19895023]
[1760109303765,0.19393885,1233.8,1233.5,0.19895023]
[1760109304062,0.19393885,1233.8,1233.4,0.19895023]
[1760109304361,0.19393885,1233.7,1233.3,0.19895023]
[1760109304663,0.19393885,1233.5,1233.3,0.19895023]
[1760109304964,0.19393885,1233.6,1233.3,0.19895023]
[1760109305165,2.7350917,1238.2,1233.3,0.19895023]
[1760109305166,0.19393885,1233.9,1233.3,0.19895023]
[1760109305369,0.19393885,1234.0,1233.8,0.19895023]
[1760109305761,0.19393885,1234.1,1233.8,0.19895023]
[1760109305967,0.19393885,1234.2,1233.9,0.19895023]
[1760109306566,0.19393885,1234.1,1233.9,0.19895023]
[1760109306762,0.19393885,1234.1,1233.8,0.19895023]
[1760109306967,0.19393885,1234.1,1233.7,0.19895023]
[1760109307262,0.19393885,1233.9,1233.7,0.19895023]
[1760109307466,0.19393885,1233.9,1233.6,0.19895023]
[1760109307867,0.19393885,1233.9,1233.7,0.19895023]
[1760109309369,0.19393885,1233.9,1233.6,0.19895023]
[1760109309670,0.19393885,1233.8,1233.5,0.19895023]
[1760109309870,0.19393885,1233.8,1233.4,0.19895023]
[1760109310069,0.7832541,1236.7,1233.2,0.19895023]
[1760109310270,0.19218682,1233.4,1233.2,0.19895023]
[1760109310566,0.19218682,1233.5,1233.3,0.19895023]
[1760109310966,0.19218682,1233.6,1233.3,0.19895023]
[1760109311166,0.19218682,1233.6,1233.4,0.19895023]
[1760109312466,0.19218682,1233.6,1233.3,0.19895023]
[1760109312967,0.19218682,1233.5,1233.3,0.19895023]
[1760109313570,0.19218682,1233.5,1233.1,0.19895023]
[1760109313768,0.19218682,1233.4,1233.1,0.19895023]
[1760109314568,0.19218682,1233.3,1233.1,0.19895023]
[1760109315973,0.19218682,1233.4,1233.1,0.19895023]
[1760109316370,0.19218682,1233.4,1233.2,0.19895023]
[1760109316770,0.19218682,1233.6,1233.2,0.19895023]
[1760109316970,0.19218682,1233.6,1233.3,0.19895023]
[1760109317367,0.19218682,1233.5,1233.3,0.19895023]
[1760109317874,0.19218682,1233.6,1233.3,0.19895023]
[1760109318671,0.19218682,1233.5,1233.2,0.19895023]
[1760109319071,0.19218682,1233.6,1233.3,0.19895023]
[1760109319574,0.19218682,1233.8,1233.5,0.19895023]
[1760109320474,0.19218682,1233.8,1233.6,0.19895023]
[1760109320776,0.19218682,1233.8,1233.4,0.19895023]
[1760109320975,0.19218682,1233.7,1233.4,0.19895023]
[1760109321273,0.19218682,1233.8,1233.6,0.19895023]
[1760109321476,0.19218682,1233.9,1233.6,0.19895023]
[1760109321672,0.14102286,1234.5,1233.6,0.19895023]
[1760109321673,0.19218682,1234.1,1233.6,0.19895023]
[1760109321878,0.19218682,1234.1,1233.9,0.19895023]
[1760109322077,0.19218682,1234.2,1233.9,0.19895023]
[1760109322277,0.19218682,1234.3,1234.0,0.19895023]
[1760109322778,0.19218682,1234.3,1234.1,0.19895023]
[1760109323274,0.19218682,1234.3,1234.0,0.19895023]
[1760109324576,0.19218682,1234.4,1234.0,0.19895023]
[1760109324776,0.19218682,1234.6,1234.0,0.19895023]
[1760109325079,0.19218682,1234.6,1234.3,0.19895023]
[1760109325478,0.19218682,1234.6,1234.4,0.19895023]
[1760109327375,0.19218682,1234.6,1234.3,0.19895023]
[1760109328081,0.19218682,1234.6,1233.5,0.5946724]
[1760109328082,0.19218682,1234.6,1234.2,0.19895023]
[1760109328382,0.19218682,1234.4,1234.2,0.19895023]
[1760109328780,0.14094233,1235.0,1234.2,0.19895023]
[1760109328781,0.19218682,1234.6,1234.2,0.19895023]
[1760109329278,0.19218682,1234.7,1234.4,0.19895023]
[1760109329780,0.19218682,1234.6,1234.4,0.19895023]
[1760109330284,0.19218682,1234.6,1234.3,0.19895023]
[1760109330577,0.19218682,1234.7,1234.3,0.19895023]
[1760109330779,0.19218682,1234.7,1234.5,0.19895023]
[1760109330982,0.19218682,1234.6,1234.4,0.19895023]
[1760109331178,0.19218682,1234.6,1234.2,0.19895023]
[1760109331482,0.14094233,1235.0,1233.9,0.19895023]
[1760109331678,0.19370593,1234.1,1233.9,0.19895023]